Workbook

Sheet Sheet1 (hidden)
A1: 何静文创清单
A2: 图片 | B2: 项目名称 | C2: 材质 （仅作参考，可根据工厂推荐适当修改） | D2: 尺寸 （仅作参考，可根据工厂推荐适当修改） | E2: 综合单价（元/个） | F2: 68.33折折后单价 | G2: 数量 | H2: 总价 | I2: 工期 | J2: 打样
A3: 趣味配饰
B4: 平安福 | C4: 涤纶刺绣保护壳铃铛 | D4: 40*55mm | E4: 8.8 | F4: 6 | G4: 500 | H4: =F4*G4 -> 3000 | I4: 20天 | J4: 一款打样费：折前330元 确认下单后可抵免
E5: 7.7 | F5: 5.26 | G5: 2000 | H5: 10520
E6: 6.585687107 | F6: 4.5 | G6: 5000 | H6: 22500
B7: 金属徽章 | C7: 金属烤漆工艺蝴蝶针 | D7: 5cm | E7: 10.53709937 | F7: 7.2 | G7: 500 | H7: 3600 | I7: 20天 | J7: 一款打样费：折前870元 确认下单后可抵免
E8: 8.122347432 | F8: 5.55 | G8: 2000 | H8: 11100
E9: 7.463778721 | F9: 5.1 | G9: 5000 | H9: 25500
B10: 金属徽章束口袋 | C10: 麻布 | D10: 9cm | E10: 5.488072589 | F10: 3.75 | G10: 500 | H10: 1875 | I10: 一周 | J10: 打样费：折前870元 确认下单后可抵免
E11: 5.049026782 | F11: 3.45 | G11: 2000 | H11: 6900
E12: 4.829503878 | F12: 3.3 | G12: 5000 | H12: 16500
B13: 神仙爷爷挂件 | C13: 毛绒玩具定制 | D13: 12cm | E13: 94.39484853 | F13: 64.5 | G13: 500套（两个为一套) | H13: =F13*500 -> 32250 | I13: 25天 | J13: 一款打样费：折前1990元 确认下单后可抵免
E14: 87.80916142 | F14: 60 | G14: 2000套（两个为一套) | H14: =60*2000 -> 120000
E15: 76.83301624 | F15: 52.5 | G15: 5000套（两个为一套) | H15: =F15*5000 -> 262500
A16: 生活用品
B17: 晴雨伞（绿） | C17: 聚酯纤维两人可撑双层伞面白色伞柄定制 | D17: 8股伞 | E17: =F17/0.6833 -> 79.02824528 | F17: 54 | G17: 500 | H17: =F17*G17 -> 27000 | I17: 30天 | J17: 一款打样费：折前280元 确认下单后可抵免
E18: 72.44255817 | F18: 49.5 | G18: 2000 | H18: 99000
E19: 68.0521001 | F19: 46.5 | G19: 5000 | H19: 232500
B20: 晴雨伞（蓝） | C20: 聚酯纤维两人可撑双层伞面白色伞柄定制 | D20: 8股伞 | E20: 79.02824528 | F20: 54 | G20: 500 | H20: 27000
E21: 72.44255817 | F21: 49.5 | G21: 2000 | H21: 99000
E22: 68.0521001 | F22: 46.5 | G22: 5000 | H22: 232500
B23: 帆布袋（文字款） | C23: 帆布 双面丝印加水洗标 | D23: 34*20cm厚度2cm 以实际为准 34×40cm竖版 无底无侧 | E23: 14.26898873 | F23: 9.75 | G23: 500 | H23: 4875 | I23: 25天 | J23: 一款打样费：折前497元 确认下单后可抵免
E24: 11.97131567 | F24: 8.18 | G24: 2000 | H24: 16360
E25: 11.63471389 | F25: 7.95 | G25: 5000 | H25: 39750
B26: 玻璃杯 | C26: 无铅玻璃 杯身杯底印字 | D26: 350ml | E26: 16.46421777 | F26: 11.25 | G26: 500 | H26: 5625 | I26: 15天 | J26: 打样费：折前490元
E27: 14.26898873 | F27: 9.75 | G27: 2000 | H27: 19500
E28: 13.17137421 | F28: 9 | G28: 5000 | H28: 45000
D29: 425ml | E29: 18.6594468 | F29: 12.75 | G29: 500 | H29: 6375
E30: 16.46421777 | F30: 11.25 | G30: 2000 | H30: 22500
E31: 15.36660325 | F31: 10.5 | G31: 5000 | H31: 52500
B32: 保温杯 | C32: 食品级不锈钢 米黄色1000个起做 | D32: 480ml | E32: 56.63690912 | F32: 38.7 | G32: 500 | H32: 19350 | I32: 25天 | J32: 无法打样（签订合同可打样）
E33: 52.24645105 | F33: 35.7 | G33: 2000 | H33: 71400
E34: 51.14883653 | F34: 34.95 | G34: 5000 | H34: 174750
B35: 保温杯 | C35: 食品级不锈钢 | D35: 300ml | E35: 0 | G35: 500 | H35: 0
E36: 0 | G36: 2000 | H36: 0
E37: 0 | G37: 5000 | H37: 0
B38: 丝圈地垫 | C38: PVC丝圈 | D38: 40*60厚度0.7cm | E38: 32.92843553 | F38: 22.5 | G38: 500 | H38: 11250 | I38: 15天 | J38: 一张40x60 一张60x90 打样费：折前230元
E39: 30.7332065 | F39: 21 | G39: 2000 | H39: 42000
E40: 26.34274843 | F40: 18 | G40: 5000 | H40: 90000
D41: 60*90厚度0.7cm | E41: 54.88072589 | F41: 37.5 | G41: 500 | H41: 18750
E42: 50.49026782 | F42: 34.5 | G42: 2000 | H42: 69000
E43: 46.09980975 | F43: 31.5 | G43: 5000 | H43: 157500
A44: 家居创意
B45: 好运抱枕 | C45: 荷兰绒+pp棉花 光滑 | D45: 55cm*36cm左右 | E45: =F45/0.6833 -> 76.83301624 | F45: 52.5 | G45: 500套（两个为一套) | H45: =F45*500 -> 26250 | I45: 25天 | J45: 一款打样费：折前1990元 确认下单后可抵免
E46: 72.44255817 | F46: 49.5 | G46: 2000套（两个为一套) | H46: =F46*2000 -> 99000
E47: 65.85687107 | F47: 45 | G47: 5000套（两个为一套) | H47: =F47*5000 -> 225000
B48: 冰箱贴 | C48: PVC、软磁 | D48: 25*38cm | E48: 17.56183228 | F48: 12 | G48: 500 | H48: =F48*G48 -> 6000 | I48: 7天 | J48: 打样费：折前248元
E49: 10.97614518 | F49: 7.5 | G49: 2000 | H49: 15000
E50: 9.87853066 | F50: 6.75 | G50: 5000 | H50: 33750
B51: 迷你对联冰箱贴 | C51: 2mm亚克力、磁片 | D51: 约95mm | E51: 14.26898873 | F51: 9.75 | G51: 500 | H51: 4875 | I51: 7天 | J51: 一个打样费：折前20元
E52: 12.0737597 | F52: 8.25 | G52: 2000 | H52: 16500
E53: 10.97614518 | F53: 7.5 | G53: 5000 | H53: 37500
B54: 水晶绒双层毛毯 （神仙家族） | C54: 水晶绒 | D54: 120*150cm | E54: 188.7896971 | F54: 129 | G54: 500 | H54: 64500 | I54: 20天 | J54: 一款打样费：折前393元
E55: 173.4230938 | F55: 118.5 | G55: 2000 | H55: 237000
E56: 149.2755744 | F56: 102 | G56: 5000 | H56: 510000
B57: 水晶绒双层毛毯 （单独IP） | C57: 水晶绒 | D57: 120*150cm | E57: 188.7896971 | F57: 129 | G57: 500 | H57: 64500
E58: 173.4230938 | F58: 118.5 | G58: 2000 | H58: 237000
E59: 149.2755744 | F59: 102 | G59: 5000 | H59: 510000
A60: 配件衍生
B61: 牛皮纸购物袋 | C61: 牛皮纸 进口130g白牛，黑色纸绳子/模切 | D61: 手提袋尺寸 34cmx40cmx11cm | E61: =F61/0.6833 -> 4.829503878 | F61: 3.3 | G61: 500 | H61: =F61*G61 -> 1650 | I61: 8天 | J61: 无法打样
E62: 3.292843553 | F62: 2.25 | G62: 2000 | H62: 4500
E63: 2.926972047 | F63: 2 | G63: 5000 | H63: 10000
B64: 标签 | C64: 特殊纸 400克铜版纸 | D64: 5mx14cm | E64: 0.4390458071 | F64: 0.3 | G64: 500 | H64: 150 | I64: 4天 | J64: 打样费：折前124元
E65: 0.1463486024 | F65: 0.1 | G65: 2000 | H65: 200
E66: 0.1170788819 | F66: 0.08 | G66: 5000 | H66: 400
B67: 封口贴 | C67: 贴纸 （透明） | D67: 5cm左右 | E67: 0.6585687107 | F67: 0.45 | G67: 500 | H67: 225 | I67: 4天 | J67: 无法打样
E68: 0.2195229036 | F68: 0.15 | G68: 2000 | H68: 300
E69: 0.1609834626 | F69: 0.11 | G69: 5000 | H69: 550

Sheet 周小结 (hidden)
A1: 神仙大农周工作小结
A2: 时间：8月11日-8月17日
A3: 序号 | B3: 分 类 | C3: 责任人 | D3: 具体工作
A4: 1 | B4: 共富农产品 | C4: 沈建国 吴 艳 | D4: 【共富农产品销售】对接白塔镇、田市镇、步路乡、广度乡等地共富生活委员，收购猪肉、鸡鸭蛋、黄桃、葡萄、黑皮鸡枞菌等农产品共计1740余斤,完成销售额2.06万元。
D5: 【共富生活委员】广度乡、下各镇、步路乡、埠头镇、朱溪镇、湫山乡等地共富生活委员帮助村民销售葡萄、水蜜桃、黄桃、番薯面、西瓜、南瓜、芋艿、丝瓜等农产品，销售额近7万元；朱溪镇共富生活委员直播团队拍摄“共富生活委员公益助农行”系列抖音短视频1期。
A6: 2 | B6: 实体门店 | C6: 陈浩泽 王东升 | D6: 【门店提升】 1.完成椒江店咖啡业务落地，周五开始试营业。
A7: 3 | B7: 产品开发 | C7: 沈建国 章红波 | D7: 【产品开发】 1.神仙大农月饼产品：完成下单生产，8月19日起分批入仓。 2.梅好大礼包：设计稿正在调整，预计本周完成。
D8: 【供应链优化】 1.推进扬百利“神仙大农紫苏杨梅汁”返厂工作，完成第一批产品的翻包工作。
A9: 4 | B9: 线上电商 | C9: 张伟军 章红波 | D9: 抖音成交金额0.91万元 ，商品曝光8.85万人次，完成13场自播，直播曝光23.52万人次，观看量2.06万人次。
D10: 天猫成交金额2.05万元，商品浏览人数3.3万人次。
D11: 京东成交金额0.17万元，商品浏览人数2425人次。
D12: 拼多多成交金额0.45万元，商品浏览人数2821人次。
A13: 5 | B13: 线下渠道 | C13: 陈浩泽 张伟军 | D13: 【维护渠道】做好浙江省政府餐管中心、浙江省政府行政超市、浙江日报超市等9家渠道维护，包括巡店、售后维护、账务核对等内容。
D14: 【合作渠道】完成神仙居君澜度假酒店、神仙居旅游集团等4家渠道合作。
D15: 【洽谈渠道】本周洽谈中渠道2家，分别是常山税务局、龙游税务局。
A16: 6 | B16: 营销宣传 | C16: 吴 艳 王东升 | D16: 完成白塔店外围广告灯箱亮化安装。
D17: 提升清凉一夏共富夜市氛围，完成集市LED灯架等物料安装。
D18: 完成紫苏杨梅汁朋友圈推广广告小视频拍摄与制作，预计下周上线推广。
D19: 完成长春农博会布展工作，展会时间8月15日-8月26日。
D20: 完成自媒体平台推送5条，其中微信公众号平台 1条、小红书1条、微博1条、视频号1条、抖音1条。

Sheet 业绩比拼 (hidden)
A1: 神仙大农实体门店业绩比拼晾晒表（8月11日—8月17日）
A2: 店铺名称 | B2: 组长 | C2: 维护渠道 | F2: 洽谈渠道 | I2: 合作渠道 | L2: 旅行社团队接待数 | O2: 销售总额（万元）
C3: 本周 | D3: 8月累计 | E3: 5月至今累计 | F3: 本周 | G3: 8月累计 | H3: 5月至今累计 | I3: 本周 | J3: 8月累计 | K3: 5月至今累计 | L3: 本周 | M3: 8月累计 | N3: 5月至今累计 | O3: 本周门店 | P3: 8月累计
A4: 台州店 | B4: 陈浩泽 | C4: 5 | D4: 21 | E4: 29 | F4: 2 | G4: 10 | H4: 24 | I4: 2 | J4: 12 | K4: 18 | O4: 1.71 | P4: =1.44+0.91+1.71 -> 4.06
A6: 城区店 | B6: 张伟军 | C6: 2 | D6: 9 | E6: 12 | F6: 0 | G6: 6 | H6: 7 | I6: 1 | J6: 4 | K6: 4 | L6: 0 | M6: 4 | N6: 7 | O6: 3.32 | P6: =1.76+3.41+3.32 -> 8.49
A8: 白塔店 | B8: 吴 艳 | C8: 2 | D8: 6 | E8: 8 | F8: 0 | G8: 6 | H8: 9 | I8: 1 | J8: 5 | K8: 8 | L8: 5 | M8: 20 | N8: 34 | O8: 3.99 | P8: =1.87+2.45+3.99 -> 8.31
A10: 合计 | C10: =SUM(C4:C9) -> 9 | D10: 36 | E10: 49 | F10: 2 | G10: 22 | H10: 40 | I10: =SUM(I4:I9) -> 4 | J10: 21 | K10: 30 | L10: =SUM(L4:L9) -> 5 | M10: 24 | N10: 41 | O10: 9.02 | P10: 20.86

Sheet Sheet1 (2)
A1: 型号：江铃汽车雪莲冷链JSC5040XLCXGA2
A2: 技术参数 | B2: 驾驶室 | D2: 单排
B3: 轴距 | D3: 3360
B4: 整车外形尺寸（长*宽*高，mm） | D4: 5995*2050*3015
B5: 货箱内部尺寸（长*宽*高，mm） | D5: 4165*1880*1860
B6: 发动机型号 | D6: JX493ZLQ6A（江铃汽车股份有限公司）
B7: 底盘型号 | D7: JX1041TG26（江铃汽车股份有限公司）
B8: 额定功率（KW） | D8: 90
B9: 排量（ML） | D9: 2771
B10: 马力（PS） | D10: 122
B11: 驾驶室准乘人数（人） | D11: 2
B12: 整备质量（KG） | D12: 2950
B13: 总质量（KG） | D13: 4495
B14: 额定载质量（KG） | D14: 1415
B15: 轮胎规格 | D15: 7.00R16LT 8PR
B16: 最高车速（km/h） | D16: 100
B17: 油耗（100km/L） | D17: 10.9
A18: 底盘配置 | B18: 前后鼓式/原厂空调/ABS/MP3/中控锁/方向助力/针织座椅/5个前进挡/轴距3360/大功率发电机/电动门窗
A19: 厢体参数 | B19: 面板 | D19: 玻璃钢
B20: 保温层 | D20: 聚氨酯芯材/密度（42～45kg/m³）
B21: 抗压强度 | D21: ≥0.2mpa
B22: 适应温度 | D22: -50℃～+70℃
A23: 产品特点 | B23: ★采用2.8升JX493系列发动机(五十铃技术涡轮增压,电控高压共轨,进气中冷技术) ★更安全，符合安全法规，多重保障制动系统可靠的制动性能 ★高强度钢材特种新材料车架，承载能力大幅度提升 ★车架标准孔位设计，方便专用功能改装 ★底盘精细化布置，精心调校，行驶更稳定 ★驾驶室宽敞，视野开阔，车身采用金属漆，外观靓丽 ★厢体标准状态：进口材料，不锈钢铰链及不锈钢门杆锁，后门框右侧标配一个不锈钢把手，后门框底梁处标配两个防撞块，方形LED照明灯*1 ★全车2年5万公里质保，其中保温厢、制冷机组质保期：1年或20000公里
